bitfinex/quotes_SOLUSD_20230102
["timestamp","ask_amount","ask_price","bid_price","bid_amount"]
[1672648816306,66.52,11.293,11.284,46.6394]
[1672648816540,20.0,11.292,11.284,46.6394]
[1672648816940,30.0,11.291,11.284,46.6394]
[1672648817469,37.51027287,11.291,11.284,46.6394]
[1672648818095,7.51027287,11.291,11.284,46.6394]
[1672648818305,86.53,11.292,11.284,46.6394]
[1672648818519,94.04027287,11.292,11.284,46.6394]
[1672648819142,30.0,11.291,11.284,46.6394]
[1672648820001,37.51027287,11.291,11.284,46.6394]
[1672648820191,66.54,11.29,11.284,46.6394]
[1672648820612,74.05027287,11.29,11.284,46.6394]
[1672648820827,30.0,11.289,11.284,46.6394]
[1672648822618,74.05027287,11.29,11.284,46.6394]
[1672648822841,7.51027287,11.288,11.284,46.6394]
[1672648823144,66.53,11.291,11.284,46.6394]
[1672648823365,30.0,11.29,11.279,145.1523]
[1672648823568,30.0,11.29,11.281,54.73]
[1672648823764,118.1216,11.291,11.282,30.0]
[1672648823974,30.0,11.29,11.282,24.73]
[1672648824309,36.68,11.29,11.282,24.73]
[1672648824517,66.54,11.289,11.282,24.73]
[1672648824729,30.0,11.288,11.282,24.73]
[1672648824934,66.56,11.287,11.282,24.73]
[1672648825151,66.54,11.289,11.282,24.73]
[1672648825656,30.0,11.29,11.282,24.73]
[1672648826310,30.0,11.288,11.282,24.73]
[1672648828500,86.56,11.287,11.272,66.64]
[1672648828719,30.0,11.286,11.274,23.6059]
[1672648828927,30.0,11.284,11.275,30.0]
[1672648829248,20.0,11.283,11.274,23.6059]
[1672648829675,20.0,11.283,11.274,53.6059]
[1672648830185,20.0,11.283,11.275,30.0]
[1672648830595,20.0,11.283,11.274,23.6059]
[1672648832299,30.0,11.282,11.274,90.2359]
[1672648832486,30.0,11.282,11.274,23.6059]
[1672648832487,20.0,11.281,11.274,23.6059]
[1672648833540,20.0,11.282,11.274,23.6059]
[1672648833967,86.58,11.282,11.274,23.6059]
[1672648834389,20.0,11.282,11.274,23.6059]
[1672648835018,30.0,11.281,11.274,23.6059]
[1672648835448,50.0,11.282,11.274,23.6059]
[1672648835660,20.0,11.282,11.275,30.0]
[1672648837446,20.0,11.282,11.274,53.6059]
[1672648839450,20.0,11.282,11.274,23.6059]
[1672648839649,20.0,11.282,11.274,90.2359]
[1672648839972,20.0,11.282,11.275,30.0]
[1672648840181,24.4905,11.295,11.276,66.62]
[1672648840390,24.4905,11.295,11.277,30.0]
[1672648840391,111.9303,11.292,11.277,30.0]
[1672648840606,131.9303,11.291,11.278,66.61]
[1672648840799,111.9303,11.291,11.279,30.0]
[1672648841125,30.0,11.29,11.28,66.6]
[1672648841336,111.9303,11.291,11.281,30.0]
[1672648841553,111.9303,11.291,11.281,77.0946]
[1672648842688,30.0,11.29,11.281,47.0946]
[1672648844168,66.54,11.289,11.272,24.1989]
[1672648844410,199.1499,11.289,11.274,24.6763]
[1672648844703,30.0,11.287,11.274,24.6763]
[1672648844914,30.0,11.285,11.274,24.6763]
[1672648845126,66.57,11.284,11.274,24.6763]
[1672648845334,50.0,11.283,11.274,24.6763]
[1672648846385,20.0,11.283,11.274,24.6763]
[1672648846703,30.0,11.282,11.274,24.6763]
[1672648846911,20.0,11.281,11.274,24.6763]
[1672648849103,20.0,11.282,11.274,24.6763]
[1672648849835,86.58,11.282,11.274,24.6763]
[1672648850042,20.0,11.282,11.274,24.6763]
[1672648850699,30.0,11.281,11.274,24.6763]
[1672648851198,116.58,11.282,11.274,24.6763]
[1672648851410,86.58,11.282,11.274,24.6763]
[1672648851633,20.0,11.282,11.274,24.6763]
[1672648852779,30.0,11.281,11.274,24.6763]
[1672648853324,50.0,11.282,11.274,24.6763]
[1672648853637,20.0,11.282,11.274,24.6763]
[1672648855006,20.0,11.282,11.275,30.0]
[1672648855327,20.0,11.282,11.274,54.6763]
[1672648855543,20.0,11.282,11.274,24.6763]
[1672648856271,30.0,11.281,11.274,24.6763]
[1672648856468,50.0,11.282,11.274,24.6763]
[1672648857099,20.0,11.282,11.274,24.6763]
[1672648857633,30.0,11.281,11.274,24.6763]
[1672648858459,50.0,11.282,11.274,24.6763]
[1672648858675,20.0,11.282,11.274,24.6763]
[1672648859217,27.51027287,11.282,11.274,24.6763]
[1672648859846,20.0,11.282,11.274,24.6763]
[1672648860998,30.0,11.281,11.274,24.6763]
[1672648861218,50.0,11.282,11.274,24.6763]
[1672648861412,20.0,11.282,11.274,24.6763]
[1672648861618,66.59,11.281,11.274,24.6763]
[1672648861945,74.10027287,11.281,11.274,24.6763]
[1672648862157,86.58,11.282,11.274,24.6763]
[1672648862565,20.0,11.282,11.274,24.6763]
[1672648864473,30.0,11.281,11.274,24.6763]
[1672648864875,50.0,11.282,11.274,24.6763]
[1672648865085,116.58,11.282,11.274,24.6763]
[1672648865303,94.09027287,11.282,11.274,24.6763]
[1672648865531,20.0,11.282,11.274,24.6763]
[1672648866135,86.58,11.282,11.274,24.6763]
[1672648866581,20.0,11.282,11.274,24.6763]
[1672648871924,20.0,11.282,11.274,54.6763]
[1672648872781,20.0,11.282,11.274,24.6763]
[1672648878240,86.59,11.282,11.274,24.6763]
[1672648878444,20.0,11.282,11.274,24.6763]
[1672648879907,27.51027287,11.282,11.274,24.6763]
[1672648880449,94.10027287,11.282,11.274,24.6763]
[1672648880650,20.0,11.282,11.274,24.6763]
[1672648890418,30.0,11.281,11.274,24.6763]
[1672648891167,159.90870944,11.282,11.274,24.6763]
[1672648891377,93.31870944,11.282,11.274,24.6763]
[1672648892325,7.51027287,11.281,11.274,24.6763]
[1672648892532,93.31870944,11.282,11.274,24.6763]
[1672648892851,7.51027287,11.281,11.274,24.6763]
[1672648893272,93.31870944,11.282,11.274,24.6763]
[1672648896215,30.0,11.281,11.274,24.6763]
[1672648897144,159.90870944,11.282,11.274,24.6763]
[1672648897687,93.31870944,11.282,11.274,24.6763]
[1672648900525,93.31870944,11.282,11.274,91.3063]
[1672648900748,93.31870944,11.282,11.274,24.6763]
[1672648901794,66.56,11.287,11.275,66.63]
[1672648901994,30.0,11.285,11.274,91.3063]
[1672648902192,20.0,11.284,11.274,24.6763]
[1672648902624,20.0,11.284,11.275,30.0]
[1672648902835,134.3688,11.284,11.274,24.6763]
[1672648903048,134.3688,11.284,11.275,30.0]
[1672648904098,37.51027287,11.283,11.274,24.6763]
[1672648904308,20.0,11.282,11.274,24.6763]
[1672648904623,27.51027287,11.282,11.274,24.6763]
[1672648904833,7.51027287,11.281,11.274,24.6763]
[1672648905662,20.0,11.282,11.274,24.6763]
[1672648905867,7.51027287,11.281,11.274,24.6763]
[1672648906099,37.51027287,11.281,11.274,24.6763]
[1672648906839,7.51027287,11.281,11.274,24.6763]
[1672648907045,30.0,11.28,11.274,24.6763]
[1672648907245,7.51027287,11.281,11.274,24.6763]
[1672648907456,37.51027287,11.28,11.274,24.6763]
[1672648907989,7.51027287,11.28,11.274,24.6763]
[1672648908811,30.0,11.279,11.274,24.6763]
[1672648909247,156.10564898,11.278,11.274,24.6763]
[1672648909872,81.98537611,11.277,11.274,24.6763]
[1672648910511,7.51027287,11.279,11.274,24.6763]
[1672648910716,133.4752,11.282,11.274,30.0]
[1672648911131,133.4752,11.282,11.273,22.5737]
[1672648911880,30.0,11.281,11.273,22.5737]
[1672648912274,133.4752,11.282,11.273,22.5737]
[1672648912491,133.4752,11.282,11.274,30.0]
[1672648913050,140.98547287,11.282,11.274,30.0]
[1672648913228,140.98547287,11.282,11.274,52.8072]
[1672648913960,140.98547287,11.282,11.274,22.8072]
[1672648914172,30.0,11.281,11.274,22.8072]
[1672648914503,7.51027287,11.281,11.274,22.8072]
[1672648914699,74.10027287,11.281,11.274,22.8072]
[1672648915115,133.4752,11.282,11.275,30.0]
[1672648915540,133.4752,11.282,11.274,52.8072]
[1672648915746,133.4752,11.282,11.274,22.8072]
[1672648916499,37.51027287,11.281,11.274,22.8072]
[1672648916714,7.51027287,11.281,11.274,22.8072]
[1672648917244,74.10027287,11.281,11.274,22.8072]
[1672648917440,7.51027287,11.281,11.274,22.8072]
[1672648917649,74.10027287,11.281,11.274,22.8072]
[1672648917972,7.51027287,11.281,11.274,22.8072]
[1672648918191,204.54057611,11.282,11.274,22.8072]
[1672648918593,37.51027287,11.281,11.274,22.8072]
[1672648918811,104.10027287,11.281,11.274,22.8072]
[1672648919016,74.10027287,11.281,11.274,22.8072]
[1672648922586,30.0,11.28,11.274,22.8072]
[1672648923339,145.16564898,11.281,11.274,22.8072]
[1672648925133,137.65537611,11.281,11.274,22.8072]
[1672648925529,30.0,11.28,11.274,22.8072]
[1672648925744,66.6,11.279,11.274,22.8072]
[1672648925954,66.6,11.28,11.274,22.8072]
[1672648927842,137.65537611,11.281,11.274,22.8072]
[1672648928173,78.57564898,11.281,11.274,22.8072]
[1672648928385,7.51027287,11.281,11.275,96.63]
[1672648928577,133.4752,11.282,11.274,22.8072]
[1672648928913,140.98547287,11.282,11.274,22.8072]
[1672648930368,140.98547287,11.282,11.275,30.0]
[1672648931331,140.98547287,11.282,11.274,22.8072]
[1672648931952,278.63084898,11.282,11.274,22.8072]
[1672648932277,30.0,11.281,11.274,22.8072]
[1672648932690,7.51027287,11.281,11.274,22.8072]
[1672648933521,204.54057611,11.282,11.274,22.8072]
[1672648933732,212.05084898,11.282,11.274,22.8072]
[1672648934676,30.0,11.281,11.274,22.8072]
[1672648934891,96.59,11.281,11.274,22.8072]
[1672648935108,74.10027287,11.281,11.274,22.8072]
[1672648935310,7.51027287,11.281,11.274,22.8072]
[1672648938779,204.54057611,11.282,11.274,22.8072]
[1672648939300,212.05084898,11.282,11.274,22.8072]
[1672648939514,30.0,11.281,11.274,22.8072]
[1672648939734,278.63084898,11.282,11.274,22.8072]
[1672648939949,37.51027287,11.281,11.274,22.8072]
[1672648940347,7.51027287,11.281,11.274,22.8072]
[1672648940559,271.12057611,11.282,11.274,22.8072]
[1672648940782,204.54057611,11.282,11.274,22.8072]
[1672648941105,30.0,11.281,11.274,22.8072]
[1672648941862,212.05084898,11.282,11.274,22.8072]
[1672648942894,30.0,11.28,11.274,22.8072]
[1672648943113,564.6,11.28,11.274,22.8072]
[1672648943324,66.59,11.281,11.274,22.8072]
[1672648943739,278.63084898,11.282,11.274,22.8072]
[1672648943950,101.06537611,11.281,11.274,22.8072]
[1672648944792,108.57564898,11.281,11.274,22.8072]
[1672648944996,175.16564898,11.281,11.274,22.8072]
[1672648945218,167.65537611,11.281,11.274,22.8072]
[1672648945960,137.65537611,11.281,11.274,22.8072]
[1672648946268,145.16564898,11.281,11.274,22.8072]
[1672648946484,30.0,11.28,11.274,22.8072]
[1672648947108,98.48670944,11.279,11.274,22.8072]
[1672648947313,30.0,11.278,11.274,22.8072]
[1672648947741,98.48670944,11.278,11.274,22.8072]
[1672648958449,30.0,11.277,11.274,22.8072]
[1672648958659,253.20445132,11.278,11.274,22.8072]
[1672648958974,98.48670944,11.276,11.273,22.5737]
[1672648959195,98.48670944,11.276,11.267,108.3259]
[1672648959600,98.48670944,11.276,11.267,22.9617]
[1672648959825,98.48670944,11.276,11.268,30.0]
[1672648960358,98.48670944,11.276,11.268,52.9617]
[1672648960887,80.60412896,11.278,11.268,22.9617]
[1672648961094,80.60412896,11.278,11.27,30.0]
[1672648961309,80.60412896,11.278,11.269,47.9047]
[1672648961500,30.0,11.277,11.269,47.9047]
[1672648962352,96.61,11.277,11.269,47.9047]
[1672648964336,96.61,11.277,11.266,66.68]
[1672648964559,30.0,11.275,11.263,46.4649]
[1672648964758,86.63,11.274,11.264,23.2136]
[1672648964975,30.0,11.273,11.264,23.2136]
[1672648965293,30.0,11.271,11.264,23.2136]
[1672648965507,88.16855124,11.272,11.264,23.2136]
[1672648965818,20.0,11.271,11.264,23.2136]
[1672648966435,172.00670944,11.271,11.264,23.2136]
[1672648966653,30.0,11.27,11.264,23.2136]
[1672648967061,115.35670944,11.27,11.264,23.2136]
[1672648967394,85.35670944,11.27,11.264,23.2136]
[1672648967597,78.93264539,11.271,11.264,23.2136]
[1672648967801,30.0,11.27,11.264,23.2136]
[1672648968358,50.0,11.271,11.264,23.2136]
[1672648968572,30.0,11.27,11.264,23.2136]
[1672648968982,50.0,11.271,11.264,23.2136]
[1672648969395,20.0,11.271,11.264,23.2136]
[1672648971728,98.36608916,11.271,11.264,23.2136]
[1672648972041,166.55486492,11.27,11.264,23.2136]
[1672648972441,244.92095408,11.27,11.264,23.2136]
[1672648973723,237.41734116,11.27,11.264,23.2136]
[1672648974554,244.92095408,11.27,11.264,23.2136]
[1672648974768,69.89486492,11.269,11.264,23.2136]
[1672648975417,30.0,11.267,11.264,23.2136]
[1672648975609,66.67,11.268,11.263,23.2513]
[1672648975825,136.55486492,11.269,11.263,23.2513]
[1672648976033,136.55486492,11.269,11.263,21.7513]
[1672648976665,137.52247624,11.27,11.263,21.7513]
[1672648976867,70.86247624,11.27,11.263,21.7513]
[1672648977280,66.66,11.269,11.263,21.7513]
[1672648978332,30.0,11.268,11.263,21.7513]
[1672648978658,66.67,11.267,11.263,21.7513]
[1672648978863,30.0,11.266,11.259,23.6254]
[1672648979076,30.0,11.264,11.247,30.0]
[1672648979288,30.0,11.262,11.249,30.0]
[1672648979500,66.71,11.261,11.25,66.77]
[1672648979822,235.50228741,11.261,11.251,30.0]
[1672648980025,112.1417,11.26,11.251,30.0]
[1672648980958,112.1417,11.26,11.25,66.77]
[1672648981168,178.8617,11.26,11.249,30.0]
[1672648981706,30.0,11.259,11.247,66.79]
[1672648981919,30.0,11.257,11.246,66.8]
[1672648982570,66.73,11.258,11.246,66.8]
[1672648982966,273.43037449,11.26,11.247,30.0]
[1672648983177,197.60750957,11.26,11.248,66.79]
[1672648983391,197.60750957,11.26,11.249,30.0]
[1672648983721,197.60750957,11.26,11.251,30.0]
[1672648983927,197.60750957,11.26,11.25,113.333]
[1672648984125,197.60750957,11.26,11.25,46.563]
[1672648984554,30.0,11.258,11.251,23.3444]
[1672648984762,66.72,11.259,11.251,23.3444]
[1672648985403,30.0,11.258,11.251,23.3444]
[1672648985614,66.72,11.259,11.251,23.3444]
[1672648986653,273.43037449,11.26,11.251,23.3444]
[1672648986865,66.7,11.262,11.252,30.0]
[1672648987182,191.63105203,11.277,11.252,30.0]
[1672648987183,108.8799,11.271,11.253,20.0]
[1672648987400,30.0,11.269,11.254,66.75]
[1672648987588,30.0,11.267,11.255,68.9633]
[1672648987798,30.0,11.267,11.256,66.74]
[1672648988239,37.50361292,11.267,11.256,115.7033]
[1672648988550,66.67,11.268,11.257,30.0]
[1672648988761,104.16361292,11.269,11.257,78.9633]
[1672648988960,7.50361292,11.268,11.257,48.9633]
[1672648989170,66.67,11.267,11.257,48.9633]
[1672648989591,30.0,11.266,11.257,48.9633]
[1672648990112,30.0,11.266,11.254,23.171]
[1672648990113,94.19361292,11.265,11.254,23.171]
[1672648990319,30.0,11.264,11.254,23.171]
[1672648990530,86.7,11.263,11.254,23.171]
[1672648990741,30.0,11.262,11.254,23.171]
[1672648990953,30.0,11.26,11.254,47.3496]
[1672648991170,30.0,11.26,11.254,24.1786]
[1672648991373,74.21361292,11.261,11.254,24.1786]
[1672648991587,66.71,11.261,11.254,24.1786]
[1672648991800,206.3061,11.262,11.254,24.1786]
[1672648992227,7.50361292,11.261,11.254,24.1786]
[1672648992441,30.0,11.259,11.254,24.1786]
[1672648993488,66.72,11.26,11.254,24.1786]
[1672648993698,30.0,11.259,11.254,24.1786]
[1672648994531,66.73,11.258,11.254,24.1786]
[1672648994760,96.72,11.259,11.254,24.1786]
[1672648994949,96.72,11.26,11.254,24.1786]
[1672648995386,66.72,11.26,11.254,24.1786]
[1672648995805,30.0,11.259,11.254,24.1786]
[1672648996421,30.0,11.257,11.254,24.1786]
[1672648996630,66.73,11.258,11.249,23.9696]
[1672648997053,111.163,11.26,11.249,23.9696]
[1672648997264,111.163,11.26,11.25,53.8399]
[1672648997589,118.66661292,11.26,11.251,23.8399]
[1672648997787,111.163,11.26,11.251,23.8399]
[1672648998209,30.0,11.258,11.251,23.8399]
[1672648998644,66.72,11.259,11.251,23.8399]
[1672648998856,30.0,11.258,11.251,23.8399]
[1672648999065,66.72,11.259,11.251,23.8399]
[1672648999904,66.72,11.259,11.252,30.0]
[1672649000110,111.163,11.26,11.251,23.8399]
[1672649000838,30.0,11.259,11.251,23.8399]
[1672649001052,111.163,11.26,11.251,53.8399]
[1672649001896,111.163,11.26,11.251,23.8399]
[1672649002101,30.0,11.259,11.251,23.8399]
[1672649002321,96.72,11.259,11.251,23.8399]
[1672649002733,74.22361292,11.259,11.251,23.8399]
[1672649003050,66.72,11.259,11.251,23.8399]
[1672649003257,30.0,11.259,11.251,23.8399]
[1672649003476,66.73,11.258,11.251,23.8399]
[1672649003794,111.163,11.26,11.251,23.8399]
[1672649003993,111.163,11.26,11.251,53.8399]
[1672649004200,209.97005476,11.26,11.245,9.1860217]
[1672649004419,6.74,11.25,11.228,149.6968418]
[1672649004634,183.0139,11.249,11.228,149.6968418]
[1672649004847,30.0,11.248,11.23,30.0]
[1672649005166,165.44207668,11.247,11.231,66.89]
[1672649005371,165.44207668,11.247,11.232,30.0]
[1672649005581,264.18190854,11.247,11.233,66.88]
[1672649005796,66.79,11.247,11.234,30.0]
[1672649005993,116.2339,11.249,11.236,30.0]
[1672649006201,116.2339,11.249,11.237,66.85]
[1672649006626,116.2339,11.249,11.238,30.0]
[1672649006843,116.2339,11.249,11.24,30.0]
[1672649008191,116.2339,11.249,11.241,66.83]
[1672649008406,116.2339,11.249,11.239,66.84]
[1672649008943,116.2339,11.249,11.236,30.0]
[1672649009160,116.2339,11.249,11.237,66.85]
[1672649009369,116.2339,11.249,11.238,30.0]
[1672649009555,116.2339,11.249,11.239,66.84]
[1672649010712,30.0,11.248,11.238,114.8223]
[1672649010927,30.0,11.248,11.238,47.9723]
[1672649011348,116.2339,11.249,11.239,30.0]
[1672649011785,116.2339,11.249,11.238,47.9723]
[1672649011988,66.79,11.248,11.238,47.9723]
[1672649012198,116.2339,11.249,11.239,30.0]
[1672649012821,116.2339,11.249,11.239,96.84]
[1672649014712,116.2339,11.249,11.239,30.0]
[1672649015562,116.2339,11.249,11.238,114.8223]
[1672649015888,116.2339,11.249,11.239,30.0]
[1672649016199,96.79,11.248,11.238,47.9723]
[1672649016393,66.79,11.248,11.238,47.9723]
[1672649016602,66.79,11.248,11.239,30.0]
[1672649016936,116.2339,11.249,11.239,30.0]
[1672649017147,116.2339,11.249,11.239,66.84]
[1672649017365,66.79,11.248,11.238,47.9723]
[1672649019772,30.0,11.247,11.238,47.9723]
[1672649020195,66.8,11.246,11.238,47.9723]
[1672649020718,30.0,11.248,11.238,47.9723]
[1672649020719,66.79,11.247,11.238,47.9723]
[1672649021143,66.79,11.248,11.238,47.9723]
[1672649021335,30.0,11.247,11.238,47.9723]
[1672649021540,66.8,11.246,11.238,47.9723]
[1672649021756,66.79,11.247,11.238,47.9723]
[1672649022386,66.79,11.248,11.238,47.9723]
[1672649022596,30.0,11.247,11.238,47.9723]
[1672649022808,66.79,11.248,11.238,47.9723]
[1672649023017,30.0,11.247,11.238,47.9723]
[1672649023237,66.8,11.246,11.238,47.9723]
[1672649023750,66.79,11.247,11.238,47.9723]
[1672649023955,30.0,11.246,11.238,47.9723]
[1672649024504,66.8,11.245,11.238,47.9723]
[1672649024911,30.0,11.244,11.238,47.9723]
[1672649025239,66.8,11.245,11.238,47.9723]
[1672649025452,66.8,11.245,11.23,24.1357]
[1672649025766,179.1682,11.244,11.231,45.8315]
[1672649025955,66.82,11.243,11.231,45.8315]
[1672649026166,30.0,11.242,11.231,45.8315]
[1672649026390,86.83,11.241,11.233,30.0]
[1672649026593,86.83,11.241,11.232,23.5235]
[1672649027016,205.3117,11.241,11.232,23.5235]
[1672649028799,205.3117,11.241,11.233,30.0]
[1672649029127,138.4817,11.241,11.233,30.0]
[1672649029356,66.83,11.24,11.232,23.5235]
[1672649030700,138.4817,11.241,11.232,23.5235]
[1672649031111,118.4817,11.241,11.233,30.0]
[1672649032168,118.4817,11.241,11.232,53.5235]
[1672649032383,66.83,11.24,11.232,53.5235]
[1672649032701,118.4817,11.241,11.232,23.5235]
[1672649032914,30.0,11.239,11.232,23.5235]
[1672649033319,178.0203,11.24,11.232,23.5235]
[1672649033522,534.6,11.239,11.232,23.5235]
[1672649033734,66.85,11.238,11.232,23.5235]
[1672649033950,66.84,11.239,11.232,23.5235]
[1672649034380,30.0,11.238,11.232,23.5235]
[1672649034588,66.85,11.237,11.232,23.5235]
[1672649035224,66.85,11.237,11.231,23.0254]
[1672649035440,66.85,11.238,11.231,23.0254]
[1672649036369,111.1903,11.239,11.231,23.0254]
[1672649037417,30.0,11.238,11.231,23.0254]
[1672649037852,111.1903,11.239,11.231,23.0254]
[1672649038799,111.1903,11.239,11.231,53.0254]
[1672649039009,111.1903,11.239,11.233,30.0]
[1672649039336,111.1903,11.239,11.232,66.88]
[1672649039520,111.1903,11.239,11.231,47.6078]
[1672649040571,30.0,11.238,11.231,47.6078]
[1672649041107,111.1903,11.239,11.231,47.6078]
[1672649041298,30.0,11.236,11.231,47.6078]
[1672649041634,66.85,11.238,11.231,24.5824]
[1672649042042,30.0,11.237,11.231,24.5824]
[1672649042271,66.86,11.236,11.231,24.5824]
[1672649042478,30.0,11.237,11.231,24.5824]
[1672649042674,66.85,11.238,11.231,24.5824]
[1672649043108,30.0,11.237,11.231,24.5824]
[1672649043403,111.1903,11.239,11.231,24.5824]
[1672649044263,178.0303,11.239,11.231,24.5824]
[1672649044475,111.1903,11.239,11.231,24.5824]
[1672649044906,111.1903,11.239,11.232,30.0]
[1672649045506,0.0038,11.24,11.233,20.0]
[1672649045720,23.0596,11.241,11.234,66.87]
[1672649045929,66.77,11.25,11.235,30.0]
[1672649046153,30.0,11.249,11.236,66.86]
[1672649046367,66.79,11.248,11.234,167.5389]
[1672649046558,74.29361292,11.248,11.234,167.5389]
[1672649046772,30.0,11.247,11.235,30.0]
[1672649046995,30.0,11.247,11.236,66.86]
[1672649047211,66.8,11.246,11.235,66.86]
[1672649047428,20.0,11.245,11.233,24.3089]
[1672649047608,66.81,11.244,11.234,30.0]
[1672649047817,66.8,11.246,11.236,30.0]
[1672649048047,30.0,11.245,11.235,91.5936]
[1672649048454,30.0,11.245,11.235,24.7336]
[1672649048663,66.81,11.244,11.233,24.3089]
[1672649048872,74.31361292,11.244,11.233,24.3089]
[1672649049087,37.50361292,11.243,11.233,24.3089]
[1672649049303,86.82,11.242,11.233,24.3089]
[1672649049514,30.0,11.241,11.233,24.3089]
[1672649049724,30.0,11.239,11.233,24.3089]
[1672649049947,66.85,11.238,11.232,46.1628]
[1672649050152,30.0,11.239,11.232,46.1628]
[1672649050342,66.83,11.24,11.232,46.1628]
[1672649050767,30.0,11.239,11.232,46.1628]
[1672649052557,30.0,11.237,11.232,46.1628]
[1672649052979,66.85,11.238,11.232,46.1628]
[1672649053300,96.84,11.239,11.232,46.1628]
[1672649054367,104.34361292,11.239,11.232,22.921]
[1672649055412,104.34361292,11.239,11.221,66.95]
[1672649055597,30.0,11.237,11.221,23.1719]
[1672649055929,30.0,11.235,11.222,66.94]
[1672649056143,66.87,11.234,11.223,30.0]
[1672649056333,66.86,11.235,11.223,30.0]
[1672649056540,20.0,11.234,11.223,30.0]
[1672649056754,134.5413,11.234,11.223,30.0]
[1672649057716,30.0,11.233,11.222,90.1119]
[1672649057927,20.0,11.232,11.222,53.1719]
[1672649058150,138.5568,11.232,11.223,30.0]
[1672649058570,66.85,11.237,11.224,20.0]
[1672649058778,118.5568,11.24,11.225,96.92]
[1672649058978,66.84,11.239,11.225,262.0804]
[1672649059313,30.0,11.238,11.225,262.0804]
[1672649059503,66.84,11.239,11.227,30.0]
[1672649059714,66.84,11.239,11.227,96.91]
[1672649059924,30.0,11.238,11.227,96.91]
[1672649060144,30.0,11.238,11.227,66.91]
[1672649060359,30.0,11.238,11.227,91.393]
[1672649060572,30.0,11.238,11.227,24.483]
[1672649060982,66.85,11.237,11.227,24.483]
[1672649061192,66.85,11.238,11.227,24.483]
[1672649061512,66.85,11.238,11.228,30.0]
[1672649061727,66.84,11.239,11.228,96.91]
[1672649061933,66.84,11.239,11.228,120.9424]
[1672649062561,30.0,11.238,11.228,90.9424]
[1672649062765,30.0,11.238,11.228,24.0324]
[1672649063606,66.84,11.239,11.228,54.0324]
[1672649063823,30.0,11.238,11.228,54.0324]
[1672649064033,30.0,11.238,11.228,24.0324]
[1672649064249,30.0,11.238,11.228,54.0324]
[1672649064676,96.84,11.239,11.228,54.0324]
[1672649064868,30.0,11.238,11.228,24.0324]
[1672649065706,30.0,11.236,11.228,24.0324]
[1672649066033,37.50361292,11.236,11.228,24.0324]
[1672649066238,66.86,11.235,11.228,24.0324]
[1672649066651,30.0,11.237,11.228,24.0324]
[1672649067084,66.85,11.238,11.228,24.0324]
[1672649067502,74.35361292,11.238,11.228,24.0324]
[1672649068331,66.85,11.238,11.228,24.0324]
[1672649068542,30.0,11.237,11.228,24.0324]
[1672649068964,66.86,11.236,11.228,24.0324]
[1672649069499,30.0,11.237,11.228,24.0324]
[1672649070235,66.85,11.238,11.228,24.0324]
[1672649070656,66.84,11.239,11.229,30.0]
[1672649071077,118.5568,11.24,11.231,30.0]